fUSD/lending_fUSD_20250123
["ID","MTS","AMOUNT","RATE_DAILY","PERIOD"]
[350121669,1737642643285,-500.0,0.00016438,2]
[350121670,1737642643295,-500.0,0.00016438,2]
[350121671,1737642643304,-500.0,0.00016438,2]
[350121672,1737642643313,-500.0,0.00016438,2]
[350121673,1737642643323,-169.76791405,0.00016438,2]
[350121674,1737642643332,-500.0,0.00016438,2]
[350121675,1737642643341,-500.0,0.00016438,2]
[350121676,1737642643351,-500.0,0.00016438,2]
[350121677,1737642643360,-500.0,0.00016438,2]
[350121678,1737642643371,-502.90608276,0.00016438,2]
[350121679,1737642643390,-170.91650691,0.00016438,2]
[350121680,1737642643399,-585.16697611,0.00016438,2]
[350121681,1737642643408,-500.0,0.00016438,2]
[350121682,1737642643419,-519.36717424,0.00016438,2]
[350121683,1737642643428,-500.0,0.00016438,2]
[350121684,1737642643437,-296.0367435,0.00016438,2]
[350121685,1737642643447,-588.02218533,0.00016438,2]
[350121686,1737642643457,-500.0,0.00016438,2]
[350121688,1737642643466,-500.0,0.00016438,2]
[350121689,1737642643476,-500.0,0.00016438,2]
[350121690,1737642643493,-500.0,0.00016438,2]
[350121691,1737642643502,-500.0,0.00016438,2]
[350121692,1737642643512,-500.0,0.00016438,2]
[350121693,1737642643524,-500.0,0.00016438,2]
[350121694,1737642643535,-500.0,0.00016438,2]
[350121695,1737642643545,-500.0,0.00016438,2]
[350121696,1737642643738,-500.0,0.00016438,2]
[350121697,1737642643748,-500.0,0.00016438,2]
[350121698,1737642643761,-500.0,0.00016438,2]
[350121699,1737642643770,-500.0,0.00016438,2]
[350121700,1737642643781,-500.0,0.00016438,2]
[350121701,1737642643790,-500.0,0.00016438,2]
[350121702,1737642643799,-500.0,0.00016438,2]
[350121703,1737642643809,-500.0,0.00016438,2]
[350121704,1737642643818,-517.65414529,0.00016438,2]
[350121705,1737642643828,-500.0,0.00016438,2]
[350121706,1737642643837,-500.0,0.00016438,2]
[350121707,1737642643847,-500.0,0.00016438,2]
[350121708,1737642643858,-617.57918901,0.00016438,2]
[350121709,1737642643867,-500.0,0.00016438,2]
[350121710,1737642643877,-500.0,0.00016438,2]
[350121711,1737642643888,-500.0,0.00016438,2]
[350121712,1737642643898,-500.0,0.00016438,2]
[350121713,1737642643908,-500.0,0.00016438,2]
[350121714,1737642643917,-500.0,0.00016438,2]
[350121715,1737642643927,-500.0,0.00016438,2]
[350121716,1737642643936,-338.42003843,0.00016438,2]
[350121717,1737642643946,-500.0,0.00016438,2]
[350121718,1737642643955,-500.0,0.00016438,2]
[350121719,1737642643964,-500.0,0.00016438,2]
[350121720,1737642643973,-162.23861977,0.00016438,2]
[350121721,1737642643983,-500.0,0.00016438,2]
[350121722,1737642643998,-218.61990851,0.00016438,2]
[350121723,1737642644009,-500.0,0.00016438,2]
[350121724,1737642644020,-500.0,0.00016438,2]
[350121725,1737642644029,-500.0,0.00016438,2]
[350121726,1737642644039,-779.12,0.00016438,2]
[350121727,1737642644049,-500.0,0.00016438,2]
[350121728,1737642644058,-500.0,0.00016438,2]
[350121729,1737642644067,-500.0,0.00016438,2]
[350121730,1737642644077,-500.0,0.00016438,2]
[350121731,1737642644086,-500.0,0.00016438,2]
[350121732,1737642644095,-500.0,0.00016438,2]
[350121733,1737642644108,-500.0,0.00016438,2]
[350121734,1737642644118,-500.0,0.00016438,2]
[350121735,1737642644127,-500.0,0.00016438,2]
[350121736,1737642644136,-500.0,0.00016438,2]
[350121737,1737642644146,-500.0,0.00016438,2]
[350121738,1737642644155,-500.0,0.00016438,2]
[350121739,1737642644164,-500.0,0.00016438,2]
[350121740,1737642644173,-500.0,0.00016438,2]
[350121741,1737642644182,-500.0,0.00016438,2]
[350121742,1737642644192,-519.43148214,0.00016438,2]
[350121743,1737642644201,-500.0,0.00016438,2]
[350121744,1737642644211,-500.0,0.00016438,2]
[350121745,1737642644221,-500.0,0.00016438,2]
[350121746,1737642644230,-500.0,0.00016438,2]
[350121747,1737642644240,-500.0,0.00016438,2]
[350121748,1737642644249,-500.0,0.00016438,2]
[350121749,1737642644258,-500.0,0.00016438,2]
[350121750,1737642644268,-500.0,0.00016438,2]
[350121751,1737642644277,-500.0,0.00016438,2]
[350121752,1737642644286,-500.0,0.00016438,2]
[350121753,1737642644295,-9.22112124,0.00016438,2]
[350121754,1737642644312,-490.77887876,0.00016438,2]
[350121755,1737642644321,-500.0,0.00016438,2]
[350121756,1737642644331,-500.0,0.00016438,2]
[350121757,1737642644340,-500.0,0.00016438,2]
[350121758,1737642644350,-500.0,0.00016438,2]
[350121759,1737642644365,-500.0,0.00016438,2]
[350121760,1737642644378,-573.18,0.00016438,2]
[350121761,1737642644387,-268.21210132,0.00016438,2]
[350121762,1737642644397,-422.46739708,0.00016438,2]
[350121763,1737642644452,-77.53260292,0.00016438,2]
[350121764,1737642644462,-500.0,0.00016438,2]
[350121765,1737642644471,-500.0,0.00016438,2]
[350121766,1737642644480,-19.32053792,0.00016438,2]
[350121767,1737642644492,-480.67946208,0.00016438,2]
[350121768,1737642644501,-500.0,0.00016438,2]
[350121769,1737642644510,-500.0,0.00016438,2]
[350121770,1737642644519,-500.0,0.00016438,2]
[350121771,1737642644529,-363.03667014,0.00016438,2]
[350121772,1737642644538,-841.02,0.00016438,2]
[350121773,1737642644547,-500.0,0.00016438,2]
[350121774,1737642644556,-500.0,0.00016438,2]
[350121775,1737642644565,-500.0,0.00016438,2]
[350121776,1737642644574,-352.28884827,0.00016438,2]
[350121777,1737642644586,-147.71115173,0.00016438,2]
[350121778,1737642644595,-310.10484827,0.00016438,2]
[350121779,1737642644613,-189.89515173,0.00016438,2]
[350121780,1737642644630,-500.0,0.00016438,2]
[350121781,1737642644639,-500.0,0.00016438,2]
[350121782,1737642644649,-585.37564464,0.00016438,2]
[350121783,1737642644658,-500.0,0.00016438,2]
[350121784,1737642644667,-500.0,0.00016438,2]
[350121785,1737642644677,-500.0,0.00016438,2]
[350121786,1737642644686,-500.0,0.00016438,2]
[350121787,1737642644695,-500.0,0.00016438,2]
[350121788,1737642644706,-916.72,0.00016438,2]
[350121789,1737642644716,-500.0,0.00016438,2]
[350121790,1737642644727,-500.0,0.00016438,2]
[350121791,1737642644737,-500.0,0.00016438,2]
[350121792,1737642644749,-500.0,0.00016438,2]
[350121793,1737642644759,-500.0,0.00016438,2]
[350121794,1737642644769,-500.0,0.00016438,2]
[350121795,1737642644779,-500.0,0.00016438,2]
[350121796,1737642644788,-500.0,0.00016438,2]
[350121797,1737642644800,-159.84920953,0.00016438,2]
[350121798,1737642646039,-340.15079047,0.00016438,2]
[350121799,1737642646048,-500.0,0.00016438,2]
[350121800,1737642646058,-500.0,0.00016438,2]
[350121801,1737642646067,-500.0,0.00016438,2]
[350121802,1737642646077,-500.0,0.00016438,2]
[350121803,1737642646086,-206.79426156,0.00016438,2]
[350121804,1737642646095,-500.0,0.00016438,2]
[350121805,1737642646107,-511.87,0.00016438,2]
[350121806,1737642646117,-500.0,0.00016438,2]
[350121807,1737642646126,-500.0,0.00016438,2]
[350121808,1737642646135,-500.0,0.00016438,2]
[350121809,1737642646145,-500.0,0.00016438,2]
[350121810,1737642646155,-500.0,0.00016438,2]
[350121811,1737642646164,-500.0,0.00016438,2]
[350121812,1737642646174,-500.0,0.00016438,2]
[350121813,1737642646183,-500.0,0.00016438,2]
[350121814,1737642646193,-500.0,0.00016438,2]
[350121815,1737642646202,-350.89361983,0.00016438,2]
[350121816,1737642646211,-513.82876711,0.00016438,2]
[350121817,1737642646222,-500.0,0.00016438,2]
[350121818,1737642646232,-543.70801763,0.00016438,2]
[350121819,1737642646242,-500.0,0.00016438,2]
[350121820,1737642646251,-500.0,0.00016438,2]
[350121821,1737642646262,-500.0,0.00016438,2]
[350121822,1737642646271,-532.81,0.00016438,2]
[350121823,1737642646281,-500.0,0.00016438,2]
[350121824,1737642646290,-500.0,0.00016438,2]
[350121825,1737642646299,-500.0,0.00016438,2]
[350121826,1737642646308,-210.65668942,0.00016438,2]
[350121827,1737642646319,-500.0,0.00016438,2]
[350121828,1737642646327,-500.0,0.00016438,2]
[350121829,1737642646336,-410.9434529,0.00016438,2]
[350121830,1737642646345,-158.69770624,0.00016438,2]
[350121832,1737642646355,-500.0,0.00016438,2]
[350121834,1737642646365,-500.0,0.00016438,2]
[350121836,1737642646377,-521.51857146,0.00016438,2]
[350121838,1737642646386,-561.44,0.00016438,2]
[350121840,1737642646395,-271.22139575,0.00016438,2]
[350121842,1737642646404,-651.78,0.00016438,2]
[350121844,1737642646414,-500.0,0.00016438,2]
[350121846,1737642646423,-571.5319121,0.00016438,2]
[350121848,1737642646432,-500.0,0.00016438,2]
[350121850,1737642646441,-500.0,0.00016438,2]
[350121853,1737642646453,-500.0,0.00016438,2]
[350121855,1737642646462,-500.0,0.00016438,2]
[350121857,1737642646471,-500.0,0.00016438,2]
[350121859,1737642646480,-500.0,0.00016438,2]
[350121861,1737642646490,-500.0,0.00016438,2]
[350121863,1737642646499,-500.0,0.00016438,2]
[350121865,1737642646508,-500.0,0.00016438,2]
[350121867,1737642646517,-500.0,0.00016438,2]
[350121869,1737642646526,-500.0,0.00016438,2]
[350121871,1737642646535,-500.0,0.00016438,2]
[350121873,1737642646544,-500.0,0.00016438,2]
[350121875,1737642646553,-500.0,0.00016438,2]
[350121877,1737642646562,-500.0,0.00016438,2]
[350121879,1737642646572,-500.0,0.00016438,2]
[350121881,1737642646581,-634.19,0.00016438,2]
[350121883,1737642646590,-500.0,0.00016438,2]
[350121885,1737642646599,-500.0,0.00016438,2]
[350121887,1737642646610,-500.0,0.00016438,2]
[350121889,1737642646619,-484.62456103,0.00016438,2]
[350121892,1737642646628,-500.0,0.00016438,2]
[350121893,1737642646637,-500.0,0.00016438,2]
[350121895,1737642646646,-500.0,0.00016438,2]
[350121897,1737642646655,-500.0,0.00016438,2]
[350121899,1737642646665,-500.0,0.00016438,2]
[350121901,1737642646674,-500.0,0.00016438,2]
[350121903,1737642646683,-500.0,0.00016438,2]
[350121905,1737642646692,-500.0,0.00016438,2]
[350121907,1737642646702,-500.0,0.00016438,2]
[350121909,1737642646710,-500.0,0.00016438,2]
[350121911,1737642646720,-500.0,0.00016438,2]
[350121913,1737642646729,-500.0,0.00016438,2]
[350121915,1737642646738,-500.0,0.00016438,2]
[350121917,1737642646747,-500.0,0.00016438,2]
[350121919,1737642646756,-500.0,0.00016438,2]
[350121921,1737642646766,-500.0,0.00016438,2]
[350121923,1737642646775,-672.45,0.00016438,2]
[350121925,1737642646785,-500.0,0.00016438,2]
[350121927,1737642646793,-500.0,0.00016438,2]
[350121929,1737642646803,-500.0,0.00016438,2]
[350121931,1737642646812,-500.0,0.00016438,2]
[350121933,1737642646822,-500.0,0.00016438,2]
[350121935,1737642646831,-500.0,0.00016438,2]
[350121937,1737642646840,-500.0,0.00016438,2]
[350121938,1737642646849,-500.0,0.00016438,2]
[350121940,1737642646860,-500.0,0.00016438,2]
[350121942,1737642646869,-500.0,0.00016438,2]
[350121944,1737642646879,-307.89156508,0.00016438,2]
[350121946,1737642646888,-639.51,0.00016438,2]
[350121948,1737642646897,-693.98,0.00016438,2]
[350121950,1737642646906,-500.0,0.00016438,2]
[350121952,1737642646915,-500.0,0.00016438,2]
[350121954,1737642646925,-500.0,0.00016438,2]
[350121956,1737642646935,-500.0,0.00016438,2]
[350121958,1737642646943,-500.0,0.00016438,2]
[350121960,1737642646953,-500.0,0.00016438,2]
[350121963,1737642646965,-500.0,0.00016438,2]
[350121965,1737642646974,-500.0,0.00016438,2]
[350121966,1737642646983,-500.0,0.00016438,2]
[350121969,1737642646993,-209.62842941,0.00016438,2]
[350121972,1737642647019,-290.37157059,0.00016438,2]
[350121974,1737642647028,-500.0,0.00016438,2]
[350121976,1737642647038,-500.0,0.00016438,2]
[350121978,1737642647047,-500.0,0.00016438,2]
[350121980,1737642647056,-500.0,0.00016438,2]
[350121982,1737642647065,-162.1538706,0.00016438,2]
[350121984,1737642647074,-710.97,0.00016438,2]
[350121986,1737642647083,-553.3,0.00016438,2]
[350121988,1737642647093,-500.0,0.00016438,2]
[350121990,1737642647103,-97.26445275,0.00016438,2]
[350121993,1737642647125,-465.74554725,0.00016438,2]
[350121995,1737642647134,-500.0,0.00016438,2]
[350121997,1737642647143,-552.26,0.00016438,2]
[350121999,1737642647153,-202.56798499,0.00016438,2]
[350122001,1737642647163,-500.0,0.00016438,2]
[350122003,1737642647172,-613.04,0.00016438,2]
[350122005,1737642647182,-500.0,0.00016438,2]
[350122007,1737642647191,-500.0,0.00016438,2]
[350122009,1737642647201,-500.0,0.00016438,2]
[350122011,1737642647210,-500.0,0.00016438,2]
[350122013,1737642647219,-392.88646776,0.00016438,2]
[350122016,1737642647230,-107.11353224,0.00016438,2]
[350122018,1737642647239,-500.0,0.00016438,2]
[350122020,1737642647248,-500.0,0.00016438,2]
[350122022,1737642647257,-121.98646776,0.00016438,2]
[350122024,1737642647269,-378.01353224,0.00016438,2]
[350122026,1737642647278,-500.0,0.00016438,2]
[350122028,1737642647288,-500.0,0.00016438,2]
[350122030,1737642647296,-500.0,0.00016438,2]
[350122032,1737642647305,-447.743317,0.00016438,2]
[350122034,1737642647316,-194.416683,0.00016438,2]
[350122036,1737642647326,-106.33633468,0.00016438,2]
[350122041,1737642886053,175.76,0.00016658,30]
[350122042,1737642988219,27040.982049,0.00013781,7]
[350122044,1737643028193,513.51426384,0.00013781,7]
[350122045,1737643030522,2171.2232711,0.00022,120]
[350122052,1737643783315,1040.89071083,0.00020211,60]
[350122053,1737643788428,192.92,0.00016658,30]
[350122080,1737643832205,-313.98,0.00010137,2]
[350122081,1737643832215,-1246.97,0.00013253,2]
[350122083,1737643832224,-213.00808766,0.00013708,2]
[350122085,1737643832234,-1169.08874054,0.00014468,2]
[350122097,1737643832345,-160.05384446,0.00014468,2]
[350122099,1737643832355,-240.75314685,0.00014541,2]
[350122100,1737643832365,-111.40800742,0.00014541,2]
[350122103,1737643832377,-469.75367529,0.00014541,2]
[350122105,1737643832389,-4378.20537568,0.00014541,2]
[350122107,1737643832399,-166.33,0.00014715,2]
[350122109,1737643832409,-240.75314683,0.00014979,2]
[350122111,1737643832418,-583.66,0.00014991,2]
[350122113,1737643832428,-550.0,0.00015,2]
[350122115,1737643832439,-973.14,0.00015004,2]
[350122117,1737643832449,-175.70331499,0.00015048,2]
[350122119,1737643832461,-657.40668501,0.00015048,2]
[350122121,1737643832471,-155.82,0.00015056,2]
[350122123,1737643832481,-2045.81,0.00015056,2]
[350122125,1737643832490,-251.72,0.00015074,2]
[350122127,1737643832500,-4998.59,0.00015077,2]
[350122129,1737643832510,-1733.37,0.00015085,2]
[350122131,1737643832520,-459.41,0.00015085,2]
[350122133,1737643832529,-5035.57,0.00015103,2]
[350122135,1737643832539,-1500.0,0.00015107,2]
[350122137,1737643832549,-150.0,0.00015205,2]
[350122139,1737643832559,-200.0,0.00015221,2]
[350122141,1737643832569,-237.37,0.00015241,2]
[350122143,1737643832579,-250.0,0.0001527,2]
[350122145,1737643832591,-250.0,0.0001527,2]
[350122147,1737643832601,-200.0,0.00015285,2]
[350122149,1737643832611,-1000.0,0.00015332,2]
[350122151,1737643832620,-470.9,0.00015338,2]
[350122153,1737643832630,-250.0,0.00015343,2]
[350122155,1737643832639,-151.0,0.00015362,2]
[350122157,1737643832649,-240.75314683,0.00015416,2]
[350122159,1737643832659,-5915.34076526,0.00015453,2]
[350122160,1737643832671,-21486.55923474,0.00015453,2]
[350122161,1737643832680,-256.0,0.00015516,2]
[350122162,1737643832690,-1246.97,0.00015517,2]
[350122163,1737643832700,-215.27725224,0.00015615,2]
[350122164,1737643832710,-168.53,0.00015695,2]
[350122165,1737643832720,-459.41,0.0001584,2]
[350122166,1737643832732,-10232.0,0.0001595,2]
[350122167,1737643832744,-2000.0,0.00016,2]
[350122168,1737643832754,-1000.0,0.000162,2]
[350122169,1737643832764,-279.4361,0.00016239,2]
[350122170,1737643832775,-2632.7768,0.00016242,2]
[350122171,1737643832786,-1000.0,0.00016269,2]
[350122172,1737643832796,-1000.0,0.00016287,2]
[350122173,1737643832807,-1000.0,0.00016298,2]
[350122174,1737643832819,-1985.0,0.000163,2]
[350122175,1737643832830,-150.0,0.00016328,2]
[350122176,1737643832846,-2141.081,0.00016332,2]
[350122177,1737643832857,-164.205,0.00016332,2]
[350122178,1737643832867,-975.25018224,0.00016337,2]
[350122179,1737643832877,-651.44374239,0.00016338,2]
[350122180,1737643832887,-167.44921911,0.00016338,2]
[350122181,1737643832897,-500.0,0.00016338,2]
[350122182,1737643832906,-1610.6706,0.00016338,2]
[350122183,1737643832916,-5000.0,0.00016338,2]
[350122184,1737643832925,-3120.5022,0.00016338,2]
[350122185,1737643832935,-6287.5726,0.00016338,2]
[350122186,1737643832944,-3000.968,0.00016338,2]
[350122187,1737643832954,-2500.0,0.00016338,2]
[350122188,1737643832963,-150.0,0.00016342,2]
[350122189,1737643832972,-1000.0,0.00016343,2]
[350122190,1737643832982,-150.0,0.00016346,2]
[350122191,1737643832991,-150.0,0.00016347,2]
[350122192,1737643833000,-150.0,0.00016347,2]
[350122193,1737643833010,-500.0,0.00016348,2]
[350122194,1737643833020,-150.0,0.00016349,2]
[350122195,1737643833029,-430.64066539,0.00016352,2]
[350122196,1737643833038,-150.0,0.00016353,2]
[350122197,1737643833048,-150.0,0.00016354,2]
[350122198,1737643833057,-1020.71409508,0.00016356,2]
[350122199,1737643833066,-1000.0,0.00016357,2]
[350122200,1737643833075,-1000.0,0.00016359,2]
[350122201,1737643833085,-150.0,0.00016359,2]
[350122202,1737643833097,-150.0,0.00016362,2]
[350122203,1737643833107,-1000.0,0.00016365,2]
[350122204,1737643833118,-150.0,0.00016367,2]
[350122205,1737643833128,-1000.0,0.00016368,2]
[350122206,1737643833138,-150.0,0.0001637,2]
[350122207,1737643833148,-150.0,0.00016372,2]
[350122208,1737643833157,-1000.0,0.00016372,2]
[350122209,1737643833167,-205.68894952,0.00016377,2]
[350122210,1737643833176,-150.0,0.00016381,2]
[350122211,1737643833186,-150.0,0.00016381,2]
[350122212,1737643833195,-150.0,0.00016381,2]
[350122213,1737643833205,-150.0,0.00016384,2]
[350122214,1737643833215,-150.0,0.00016385,2]
[350122215,1737643833224,-1000.0,0.00016396,2]
[350122216,1737643833234,-1000.0,0.000164,2]
[350122217,1737643833243,-150.0,0.000164,2]
[350122218,1737643833253,-1100.0,0.000164,5]
[350122219,1737643833262,-150.0,0.00016412,2]
[350122220,1737643833272,-150.0,0.00016414,2]
[350122221,1737643833283,-1000.0,0.00016416,2]
[350122222,1737643833293,-1000.0,0.00016419,2]
[350122223,1737643833302,-150.0,0.00016421,2]
[350122224,1737643833312,-1000.0,0.00016422,2]
[350122225,1737643833322,-150.0,0.00016425,2]
[350122226,1737643833332,-1000.0,0.00016427,2]
[350122227,1737643833343,-150.0,0.00016428,2]
[350122228,1737643833353,-186.7,0.00016428,2]
[350122229,1737643833363,-150.0,0.00016431,2]
[350122230,1737643833373,-1000.0,0.00016431,2]
[350122231,1737643833383,-651.44374231,0.00016434,2]
[350122232,1737643833393,-504.690585,0.00016438,2]
[350122233,1737643833403,-613.906868,0.00016438,2]
[350122234,1737643833412,-160.205379,0.00016438,2]
[350122235,1737643833422,-500.0,0.00016438,2]
[350122236,1737643833431,-404.82,0.00016438,2]
[350122237,1737643833441,-500.0,0.00016438,2]
[350122238,1737643833451,-500.0,0.00016438,2]
[350122239,1737643833460,-569.20131608,0.00016438,2]
[350122240,1737643833470,-500.0,0.00016438,2]
[350122241,1737643833480,-500.0,0.00016438,2]
[350122242,1737643833490,-500.0,0.00016438,2]
[350122243,1737643833500,-500.0,0.00016438,2]
[350122244,1737643833510,-501.94683559,0.00016438,2]
[350122245,1737643833522,-500.0,0.00016438,2]
[350122246,1737643833531,-500.0,0.00016438,2]
[350122247,1737643833541,-506.99781126,0.00016438,2]
[350122248,1737643833550,-500.0,0.00016438,2]
[350122249,1737643833560,-500.0,0.00016438,2]
[350122250,1737643833570,-500.0,0.00016438,2]
[350122251,1737643833579,-500.0,0.00016438,2]
[350122252,1737643833589,-500.0,0.00016438,2]
[350122253,1737643833599,-501.43952309,0.00016438,2]
[350122254,1737643833608,-500.0,0.00016438,2]
[350122255,1737643833619,-500.0,0.00016438,2]
[350122256,1737643833629,-500.0,0.00016438,2]
[350122257,1737643833638,-505.36052917,0.00016438,2]
[350122258,1737643833648,-503.69807514,0.00016438,2]
[350122259,1737643833658,-500.0,0.00016438,2]
[350122260,1737643833667,-500.0,0.00016438,2]
[350122261,1737643833676,-500.0,0.00016438,2]
[350122262,1737643833686,-616.58114154,0.00016438,2]
[350122263,1737643833695,-500.0,0.00016438,2]
[350122264,1737643833705,-490.87246993,0.00016438,2]
[350122265,1737643833714,-500.0,0.00016438,2]
[350122266,1737643833724,-500.0,0.00016438,2]
[350122267,1737643833734,-412.00723072,0.00016438,2]
[350122268,1737643833746,-500.0,0.00016438,2]
[350122269,1737643833755,-500.0,0.00016438,2]
[350122270,1737643833765,-211.165272,0.00016438,2]
[350122271,1737643833777,-500.0,0.00016438,2]
[350122272,1737643833787,-552.06238225,0.00016438,2]
[350122273,1737643833795,-508.71092717,0.00016438,2]
[350122274,1737643833804,-519.03523196,0.00016438,2]
[350122275,1737643833813,-317.94725389,0.00016438,2]
[350122276,1737643833823,-500.0,0.00016438,2]
[350122277,1737643833832,-500.0,0.00016438,2]
[350122278,1737643833845,-500.0,0.00016438,2]
[350122279,1737643833854,-508.84859052,0.00016438,2]
[350122280,1737643833864,-502.48690263,0.00016438,2]
[350122281,1737643833873,-500.0,0.00016438,2]
[350122282,1737643833883,-500.0,0.00016438,2]
[350122283,1737643833892,-500.0,0.00016438,2]
[350122284,1737643833901,-500.0,0.00016438,2]
[350122285,1737643833911,-500.0,0.00016438,2]
[350122286,1737643833920,-504.21148236,0.00016438,2]
[350122287,1737643833929,-500.0,0.00016438,2]
[350122288,1737643833939,-502.6931695,0.00016438,2]
[350122289,1737643833948,-500.0,0.00016438,2]
[350122290,1737643833957,-500.0,0.00016438,2]
[350122291,1737643833967,-153.063994,0.00016438,2]
[350122292,1737643833976,-500.0,0.00016438,2]
[350122293,1737643833985,-500.0,0.00016438,2]
[350122294,1737643833994,-500.0,0.00016438,2]
[350122295,1737643834003,-500.0,0.00016438,2]
[350122296,1737643834013,-505.39454276,0.00016438,2]
[350122297,1737643834022,-502.99392352,0.00016438,2]
[350122298,1737643834032,-295.80755383,0.00016438,2]
[350122299,1737643834041,-504.40868212,0.00016438,2]
[350122300,1737643834052,-509.29031605,0.00016438,2]
[350122301,1737643834061,-500.0,0.00016438,2]
[350122302,1737643834071,-500.0,0.00016438,2]
[350122303,1737643834080,-500.0,0.00016438,2]
[350122304,1737643834093,-500.0,0.00016438,2]
[350122305,1737643834104,-504.71653075,0.00016438,2]
[350122306,1737643834114,-538.61095487,0.00016438,2]
[350122307,1737643834123,-500.0,0.00016438,2]
[350122308,1737643834133,-500.0,0.00016438,2]
[350122309,1737643834143,-500.0,0.00016438,2]
[350122310,1737643834154,-506.64112622,0.00016438,2]
[350122311,1737643834165,-500.0,0.00016438,2]
[350122312,1737643834174,-500.0,0.00016438,2]
[350122313,1737643834184,-500.0,0.00016438,2]
[350122314,1737643834194,-502.7774876,0.00016438,2]
[350122315,1737643834204,-186.215246,0.00016438,2]
[350122316,1737643834214,-500.0,0.00016438,2]
[350122317,1737643834223,-500.0,0.00016438,2]
[350122318,1737643834233,-500.0,0.00016438,2]
[350122319,1737643834242,-500.0,0.00016438,2]
[350122320,1737643834252,-503.152126,0.00016438,2]
[350122321,1737643834261,-518.80489699,0.00016438,2]
[350122322,1737643834271,-500.0,0.00016438,2]
[350122323,1737643834281,-621.26871555,0.00016438,2]
[350122324,1737643834291,-500.0,0.00016438,2]
[350122325,1737643834301,-500.0,0.00016438,2]
[350122326,1737643834311,-511.71926902,0.00016438,2]
[350122327,1737643834321,-502.54689991,0.00016438,2]
[350122328,1737643834331,-500.0,0.00016438,2]
[350122329,1737643834501,-500.0,0.00016438,2]
[350122330,1737643834511,-500.0,0.00016438,2]
[350122331,1737643834523,-500.0,0.00016438,2]
[350122332,1737643834534,-500.0,0.00016438,2]
[350122333,1737643834544,-500.0,0.00016438,2]
[350122334,1737643834554,-500.0,0.00016438,2]
[350122335,1737643834563,-500.0,0.00016438,2]
[350122336,1737643834573,-500.0,0.00016438,2]
[350122337,1737643834583,-500.0,0.00016438,2]
[350122338,1737643834596,-500.0,0.00016438,2]
[350122339,1737643834605,-500.0,0.00016438,2]
[350122340,1737643834614,-500.0,0.00016438,2]
[350122341,1737643834623,-500.0,0.00016438,2]
[350122342,1737643834632,-500.0,0.00016438,2]
[350122343,1737643834641,-500.0,0.00016438,2]
[350122344,1737643834651,-500.0,0.00016438,2]
[350122345,1737643834661,-500.0,0.00016438,2]
[350122346,1737643834671,-500.0,0.00016438,2]
[350122347,1737643834680,-504.63966434,0.00016438,2]
[350122348,1737643834690,-500.0,0.00016438,2]
[350122349,1737643834700,-500.0,0.00016438,2]
[350122350,1737643834709,-500.0,0.00016438,2]
[350122351,1737643834719,-500.0,0.00016438,2]
[350122352,1737643834728,-500.0,0.00016438,2]
[350122353,1737643834739,-500.0,0.00016438,2]
[350122354,1737643834750,-505.56812126,0.00016438,2]
[350122355,1737643834759,-515.09790271,0.00016438,2]